Workbook

Sheet Alg
D11: Otsimis- ja viitamisfunktsioonid

Sheet Sisukord
B3: Funktsioon INDEX - üldpõhimõtted
B4: Funktsioon INDEX - näited 1
B5: Funktsioon INDEX - näited 2
B6: Andmed korterite kohta
B7: Otsimise üldpõhimõtted
B8: Funktsioon LOOKUP
B9: Funktsioon VLOOKUP
B10: Funktsioon MATCH
B11: Funktsiooni MATCH tööpõhimõte. Demo
B12: Funktsioonide INDEX ja MATCH kooskasutamine. Paralleelsed vektorid
B13: Funktsioonide ekstreemumite ja nende asukohtade leidmine
B14: Funktsioonide INDEX ja MATCH kooskasutamine. Tabel
B15: Vahemiku otsimine
B16: Harjutus "Komisjonitasu"
B17: Otsimine kahes suunas. INDEX & MATCH ja VLOOKUP.

Sheet Index_1
E1: veeb | K1: nimed | M1: 1 | N1: 2 | O1: 3 | P1: 4
B2: Funktsioon INDEX | I2: =INDEX(nimed,3) -> paju | J2: 1 | K2: kask | L2: 1 | M2: 21 | N2: 17
J3: 2 | K3: saar | L3: 2 | M3: -5 | N3: 63
I4: V(k) = V[k] | J4: 3 | K4: paju | L4: 3
B5: INDEX (vektor; indeks) | H5: Vk = INDEX(V; k) | L5: 4
B6: INDEX (tabel; riviindeks; tulbaindeks) | H6: Ti, j = INDEX(T; i; j) | J6: 5 | L6: 5
I7: T(i, j) = T[i, j] | J7: 6 | L7: 6
F8: =otsi(liik, liigid) ->  | J8: 7
J9: 8
C11: Vektor V | I11: k | J11: Vk
C12: 13 | D12: -27 | E12: 65 | F12: 89 | G12: -24 | I12: 1 | J12: =INDEX(V, k) -> 13
B13: k | C13: 1 | D13: 2 | E13: 3 | F13: 4 | G13: 5 | J13: =INDEX(V; k)
C15: Maatriks A (4*3) | F15: i
C16: 13 | D16: 4 | E16: 5 | F16: 1
C17: 7 | D17: 21 | E17: -5 | F17: 2 | G17: i | H17: j | I17: Ai, j
C18: -9 | D18: 33 | E18: 5 | F18: 3 | G18: =4-abi+1 -> 1 | H18: 1 | I18: =INDEX(A, i, j) -> 13
C19: 8 | D19: 17 | E19: 12 | F19: 4 | G19: 4 | I19: =INDEX(A; i; j)
B20: j | C20: 1 | D20: 2 | E20: 3

Sheet Index_2
E1: veeb
B2: Funktsiooni INDEX kasutamine
B4: Leida kuu numbrile vastav kuu nimi
B5: lehel abi on vektor kuude nimedega
B7: nr | C7: kuu nimi
B8: 12 | C8: =INDEX(kuud, nr) -> detsember
B11: Leida kuupäevale vastav kuu nimi ja nädalapäeva nimi
B13: kuupäev | C13: kuu nimi | D13: päeva nimi
B14: =TODAY() -> 2013-11-11 | C14: =INDEX(kuud, MONTH(kuupäev)) -> november | D14: =INDEX(päevad, WEEKDAY(kuupäev, 2)) -> esmaspäev
B18: Palgaarvestus | D18: Tariif leida lehel abi olevast vektorist
B20: Nimi | C20: kat | D20: tunde | E20: tariif | F20: Palk
B21: U. Saar | C21: 3 | D21: 132 | E21: =INDEX(tariifid, kat) -> 9.6 | F21: =tariif * tunde -> 1267.2
B22: H. Kask | C22: 2 | D22: 143 | E22: =INDEX(tariifid, kat) -> 6.8 | F22: =tariif * tunde -> 972.4
B23: E. Tamm | C23: 6 | D23: 137 | E23: =INDEX(tariifid, kat) -> 14.2 | F23: =tariif * tunde -> 1945.4
B24: U. Paju | C24: 10 | D24: 135 | E24: =INDEX(tariifid, kat) -> 25.6 | F24: =tariif * tunde -> 3456
B25: K. Lepp | C25: 5 | D25: 68 | E25: =INDEX(tariifid, kat) -> 12.6 | F25: =tariif * tunde -> 856.8

Sheet abi
B3: päevad | D3: kuud | F3: kateg | G3: tariifid
B4: esmaspäev | D4: jaanuar | F4: 1 | G4: 3.8
B5: teisipäev | D5: veebruar | F5: 2 | G5: 6.8
B6: kolmapäev | D6: märts | F6: 3 | G6: 9.6
B7: neljapäev | D7: aprill | F7: 4 | G7: 10.8
B8: reede | D8: mai | F8: 5 | G8: 12.6
B9: laupäev | D9: juuni | F9: 6 | G9: 14.2
B10: pühapäev | D10: juuli | F10: 7 | G10: 17
D11: august | F11: 8 | G11: 18.8
D12: september | F12: 9 | G12: 21.8
D13: oktoober | F13: 10 | G13: 25.6
D14: november
D15: detsember

Sheet Index_3
B2: Funktsiooni INDEX kasutamine
B4: Leida korteri numbri järgi tabelist Korterid | D4: Korterid
B5: omaniku nimi, inimeste arv ja korteri pindala
B7: Kaks varianti:
B8: 1) eraldi nimi igal tulbal,
B9: 2) üks nimi tervel tabelil
B11: krt | C11: 1
B12: omanik | C12: =INDEX(Omanik, krt) -> A. Kask | D12: =INDEX(korterid, krt +1, 2) -> A. Kask
B13: inimesi | C13: =INDEX(Inimesi, krt) -> 3 | D13: =INDEX(korterid, krt +1, 4) -> 3
B14: pind | C14: =INDEX(Pindala, krt) -> 65.3 | D14: =INDEX(korterid, krt +1, 3) -> 65.3
C15: Variant 1 | D15: Variant 2

Sheet Korterid
B3: Korterid
B4: 1 | C4: 2 | D4: 3 | E4: 4
A5: 1 | B5: Number | C5: Omanik | D5: Pindala | E5: Inimesi
A6: 2 | B6: 1 | C6: A. Kask | D6: 65.3 | E6: 3
A7: 3 | B7: 2 | C7: P. Lepp | D7: 74.5 | E7: 2
A8: 4 | B8: 3 | C8: K. Mänd | D8: 65.3 | E8: 5
A9: 5 | B9: 4 | C9: L. Tamm | D9: 42.6 | E9: 2
A10: 6 | B10: 5 | C10: H. Kuusk | D10: 74.5 | E10: 1
A11: 7 | B11: 6 | C11: O. Palm | D11: 63.7 | E11: 2
A12: 8 | B12: 7 | C12: V. Tamm | D12: 45.6 | E12: 3
A13: 9 | B13: 8 | C13: S. Mets | D13: 82.4 | E13: 5
A14: 10

Sheet Üldpõhimõtted
F1: veeb
K3: VLOOKUP(otsitav; tabel; v_nr [; tunnus])
J4: Hinnakiri
J5: liigid | K5: hinnad | M5: liik | N5: hind
J6: tamm | K6: 230 | M6: mänd | N6: =VLOOKUP(liik, Hinnakiri[], 2, 0) -> 150 | O6: =VLOOKUP(liik; Hinnakiri; 2; 0)
J7: vaher | K7: 220 | N7: =VLOOKUP(liik, Hinnakiri[], 2) -> 150 | O7: =VLOOKUP(liik; Hinnakiri; 2)
J8: saar | K8: 210
J9: kuusk | K9: 160
J10: mänd | K10: 150
J11: kask | K11: 120
J12: lepp | K12: 110
J13: haab | K13: 76
J14: paju | K14: 76
J16: Otsimistabelite näiteid
J17: Koodi järgi võib otsida nimetust, hinda ja ühikute arvu pakendis
J18: Nimetuse järgi võib otsida koodi, hinda ja ühikute arvu pakendis
J19: kood | K19: kaup | N19: hind
B20: Hinnakiri. Puidu hind sõltub läbimõõdust | J20: 214073 | K20: =VLOOKUP(J20, Kaubad_1, 2, 0) -> FETAKI juust 500 g | N20: =VLOOKUP(kood1, Kaubad_1, 6, 0) -> 1.82
B21: Vahemiku otsimine
J22: kood | K22: kaup | N22: pakendis | O22: hind
B23: vahemik | D23: piirid | E23: hinnad | G23: läbimõõt | H23: hind | J23: 214003 | K23: ARLA Juust Kvibille Grädd.140g | N23: 10 | O23: 1.24
B24: < 10 | D24: 0 | E24: 44 | G24: 19 | H24: =VLOOKUP(d, P_hind[], 2) -> 52 | J24: 214004 | K24: ARLA Juust Kvibille Grädd.3kg | N24: 1 | O24: 22.91
B25: 10 – 14 | D25: 10 | E25: 48 | J25: 214002 | K25: Dor Blue juust 50% 100 g | N25: 5 | O25: 0.92
B26: 15 - 19 | D26: 15 | E26: 52 | J26: 214073 | K26: FETAKI juust 500 g | N26: 24 | O26: 1.82
B27: 20 – 24 | D27: 20 | E27: 55 | J27: 214157 | K27: Juust Atleet viil vaakumis (ca 150 g) | N27: 1 | O27: 5.85
B28: 25 – 29 | D28: 25 | E28: 58 | J28: 214071 | K28: Juust Camembert 125 g | N28: 24 | O28: 2.07
B29: >= 30 | D29: 30 | E29: 56 | J29: 214158 | K29: Juust Eesti viil vaakumis (ca 150 g) | N29: 1 | O29: 5.85
B33: Hinnakiri. Puidu hind sõltub liigist ja läbimõõdust | J33: Hinnakiri. Puidu hind sõltub liigist ja läbimõõdust
B35: Liik | C35: Sort | J35: <10 | K35: 10-14 | L35: 15-19 | M35: 20-24 | N35: 25-29 | O35: >=30
C36: 1 | D36: 2 | E36: 3
B37: haab | C37: 50 | D37: =0.9*C37 -> 45 | E37: =0.8*C37 -> 40 | I37: Liigid | J37: 0 | K37: 10 | L37: 15 | M37: 20 | N37: 25 | O37: 30
B38: kask | C38: 70 | D38: =0.9*C38 -> 63 | E38: =0.8*C38 -> 56 | I38: haab | J38: 12 | K38: 17 | L38: 19 | M38: 24 | N38: 25 | O38: 25
B39: kuusk | C39: 80 | D39: 72 | E39: 64 | I39: kask | J39: 15 | K39: 23 | L39: 27 | M39: 32 | N39: 33 | O39: 33
B40: küte | C40: 47 | D40: 42.3 | E40: 37.6 | I40: kuusk | J40: 29 | K40: 32 | L40: 35 | M40: 37 | N40: 39 | O40: 38
B41: lepp | C41: 65 | D41: 58.5 | E41: 52 | I41: mänd | J41: 32 | K41: 35 | L41: 38 | M41: 41 | N41: 43 | O41: 42
B42: mänd | C42: 75 | D42: 67.5 | E42: 60 | I42: saar | J42: 34 | K42: 36 | L42: 41 | M42: 44 | N42: 45 | O42: 45
B43: saar | C43: 85 | D43: 76.5 | E43: 68 | I43: tamm | J43: 40 | K43: 45 | L43: 50 | M43: 57 | N43: 60 | O43: 73
B44: tamm | C44: 110 | D44: 99 | E44: 88 | I44: vaher | J44: 36 | K44: 40 | L44: 43 | M44: 45 | N44: 47 | O44: 53
B45: vaher | C45: 95 | D45: 85.5 | E45: 76
J47: liik | K47: läbimõõt | L47: hind
B48: Liik | C48: sort | D48: hind | J48: tamm | K48: 23 | L48: =VLOOKUP(liik_1, P_hind1, MATCH(läbimõõt, mõõdud)+1, 0) -> 57
B49: lepp | C49: 2 | D49: =VLOOKUP(liik_2, P_hind2, sort+1, 0) -> 58.5

Sheet LOOKUP
E1: veeb
B2: Funktsioon LOOKUP
B4: LOOKUP(otsitav; vek_1; vek_2)
B5: Otsib otsitavale vastavat väärtust vektorist vek_1 ning
B6: tagasrtab sama numbriga väärtuse vektorist vek_2
B7: kui otsitavaga võrdset väärtust ei ole, loetakse vastavaks otsitavale lähim väikseim väärtus
B8: Väärtused vektoris vek_1 peavad olema kasvamise järjekorras!
B9: NB! Ei võimalda määrata otsimisviisi. Sobib peamiselt vahemiku otsimiseks!
B11: "Sõnaraamat"
B12: Leida eestikeelsele sõnale ingliskeelne vaste
B13: Sõnad om lehel "Sõnad" tulpades "eesti" ja "inglise"
B15: eesti | C15: inglise
B16: elevant | C16: =LOOKUP(est, eesti, inglise) -> elephant

Sheet Sõnad
B3: eesti | C3: inglise
B4: ahv | C4: monkey
B5: elevant | C5: elephant
B6: gepard | C6: cheetah
B7: hiir | C7: mouse
B8: hirv | C8: deer
B9: hobune | C9: horse
B10: hunt | C10: wolf
B11: jänes | C11: hare
B12: kalkun | C12: turkey
B13: kana | C13: hen
B14: karu | C14: bear
B15: kass | C15: cat
B16: kobras | C16: beaver
B17: koer | C17: dog
B18: kukk | C18: cock
B19: küülik | C19: rabbit
B20: lammas | C20: sheep
B21: lehm | C21: cow
B22: lõvi | C22: lion
B23: mäger | C23: badger
B24: põder | C24: elk
B25: põrsas | C25: piglet
B26: rebane | C26: fox
B27: rott | C27: rat
B28: siga | C28: pig
B29: siil | C29: hedgehong
B30: tall | C30: lamb
B31: tiiger | C31: tiger
B32: varss | C32: foal
B33: vasikas | C33: calf

Sheet VLOOKUP
E1: veeb
B2: Funktsioon VLOOKUP
B4: VLOOKUP (otsitav; tabel; t_tulp; otsimisviis) | F4: Koodid | G4: Nimetus | H4: Pakendis | I4: Hind
B5: Otsimine vertikaalses tabelis | F5: 214002 | G5: Dor Blue juust 50% 100 g | H5: 5 | I5: 1.1
B6: Otsib väärtust tabeli esimesest tulbast | F6: 214003 | G6: ARLA juust Kvibille Grädd.140g | H6: 10 | I6: 1.48
B7: t_tulp - tabeli tulba number, kust võetakse tagastatav väärtus | F7: 214006 | G7: Juust ROSENBORG sinihallitus 125g | H7: 8 | I7: 2
B8: otsimisviis - ei ole kohustuslik, vaikimisi - 1 või True | F8: 214073 | G8: FETAKI juust 500 g | H8: 24 | I8: 2.19
B9: 0 või False - kindla väärtuse otsimine | F9: 214071 | G9: Juust Camembert 125 g | H9: 24 | I9: 2.48
B10: 1 või True - vahemiku otsimine | F10: 214157 | G10: Juust Atleet viil vaakumis (ca 150 g) | H10: 1 | I10: 7.02
F11: 214158 | G11: Juust Eesti viil vaakumis (ca 150 g) | H11: 1 | I11: 7.02
B12: Leida koodi järgi kauba hind ja nimetus tabelist Kaubad | F12: 214004 | G12: ARLA juust Kvibille Grädd.3kg | H12: 1 | I12: 27.49
B13: kood | C13: hind | D13: Nimetus
B14: 214003 | C14: =VLOOKUP(kood, Kaubad, 4, 0) -> 1.48 | D14: =VLOOKUP(kood, Kaubad, 2, 0) -> ARLA juust Kvibille Grädd.140g
B16: Funktsioon HLOOKUP
B17: HLOOKUP (otsitav; tabel; t_rivi; otsimisviis)
B18: Otsimine horisontaalses tabelis
B19: Otsib väärtust tabeli esimesest rivist
B20: t_rivi - tabeli rivi number, kust võetakse tagastatav väärtus
B21: otsimisviis - sama nagu VLOOKUP'is

Sheet MATCH
E1: veeb
B2: Funktsioon MATCH | E2: Iseseisvalt harva. Sageli koos funktsiooniga INDEX.
B4: MATCH (otsitav; vektor; otsimisviis)
B5: Leiab otsitava väärtuse järjenumbri antud vektoris
B6: otsimisviis - ei ole kohustuslik. Võib olla 0 või 1. Kui puudub võetakse 1.
B7: 0 - kindla väärtuse otsimine - järjestus vektoris suvaline
B8: kui otsitavaga võrdset väärtust ei ole, tagastab veateate #N/A
B9: 1 - vahemiku otsimine - väärtused vektoris peavad olema kasvamise järjekorras
B10: kui otsitavaga võrdset väärtust ei ole, tagastab lähima väikseima otsitavala
G12: koht | H12: nimi | I12: punkte
B13: Leida võistleja koht ja punktide arv | G13: 1 | H13: Kask | I13: 360
B14: kõrvalolevast tabelist | G14: 2 | H14: Saar | I14: 322
B15: võistleja | C15: koht | D15: punkte | G15: 3 | H15: Paju | I15: 301
B16: Kuusk | C16: =MATCH(võistleja, nimi, 0) -> 5 | D16: =INDEX(punkte, koht) -> 270 | G16: 4 | H16: Tamm | I16: 280
G17: 5 | H17: Kuusk | I17: 270
G18: 6 | H18: Mänd | I18: 265
B20: Leida kuu nimetuse järgi selle järjenumber
B21: kuu nimetus | C21: kuu number
B22: märts | C22: =MATCH(B22, kuud) -> 8 | D22: ???
B25: Leida korteri omaniku järgi korteri number,
B26: korteri pindala ja inimeste arv (tabel lehel Korterid)
B28: Omanik | C28: Korter | D28: Pindala | E28: Inimesi
B29: H. Kuusk | C29: =MATCH(B29, Omanik, 0) -> 5 | D29: =INDEX(Pindala, Korter) -> 74.5 | E29: =INDEX(Inimesi, Korter) -> 1

Sheet MATCH_D
B2: Funktsiooni MATCH tööpõhimõte
B3: Kindla väärtuse otsimine
B4: Leiab otsitava järjenumbri antud vektoris
B8: k | C8: Liigid
B9: 1 | C9: saar
B10: 2 | C10: kask
B11: 3 | C11: paju | F11: liik | G11: nr
B12: 4 | C12: kuusk | F12: tamm | G12: 7
B13: 5 | C13: jalakas
B14: 6 | C14: vaher
B15: 7 | C15: tamm
B16: 8 | C16: mänd
B17: 9 | C17: haab

Sheet Ind_Mats_1
E1: veeb
B2: INDEX & MATCH
B3: Otsimine paralleelsetes vektorites
B5: INDEX(vek_2; MATCH(otsitav; vek_1; OV))
B6: OV - otsimisviis - 0 või 1
B7: MATCH leiab otsitava väärtusele vastava järjenumbri vek_1-s
B8: INDEX tagastab leitud numbriga väärtuse vek_2-st
B9: vrdl.
B10: LOOKUP(otsitav; vek_1; vek_2)
B11: NB! Ei võimalda määrata otsimisviisi
B12: vektor_1 peab olema sorditud väärtuste kasvamise järjekorras
B14: Leida korteri omaniku järgi pindala ja inimeste arv
B15: korterid | H15: Koodid | I15: Nimetused | J15: Pakendis | K15: Hinnad
B16: Omanik | C16: pind | D16: inimesi | H16: 214002 | I16: Dor Blue juust 50% 100 g | J16: 5 | K16: 1.1
B17: K. Mänd | C17: =INDEX(Pindala, MATCH(omanik_K, Omanik,0)) -> 65.3 | D17: =INDEX(Inimesi, MATCH(omanik_K, Omanik,0)) -> 5 | H17: 214003 | I17: ARLA juust Kvibille Grädd.140g | J17: 10 | K17: 1.48
H18: 214006 | I18: Juust ROSENBORG sinihallitus 125g | J18: 8 | K18: 2
H19: 214073 | I19: FETAKI juust 500 g | J19: 24 | K19: 2.19
H20: 214071 | I20: Juust Camembert 125 g | J20: 24 | K20: 2.48
B21: Leida värvi kogus ja maksumus korterite lagede värvimiseks | H21: 214157 | I21: Juust Atleet viil vaakumis (ca 150 g) | J21: 1 | K21: 7.02
B22: korter | C22: värv | D22: kogus | E22: maksumus | H22: 214158 | I22: Juust Eesti viil vaakumis (ca 150 g) | J22: 1 | K22: 7.02
B23: 1 | C23: VL_09 | D23: =INDEX(Pindala, korter) * INDEX(v_kulu, MATCH(värv, v_mark, 0)) -> 35.915 | E23: =INDEX(v_hind, MATCH(värv, v_mark, 0))*kogus -> 188.1946 | H23: 214004 | I23: ARLA juust Kvibille Grädd.3kg | J23: 1 | K23: 27.49
B24: 2 | C24: VL_06 | D24: =INDEX(Pindala, korter) * INDEX(v_kulu, MATCH(värv, v_mark, 0)) -> 33.525 | E24: =INDEX(v_hind, MATCH(värv, v_mark, 0))*kogus -> 138.45825
B25: 3 | C25: VL_13 | D25: =INDEX(Pindala, korter) * INDEX(v_kulu, MATCH(värv, v_mark, 0)) -> 33.956 | E25: =INDEX(v_hind, MATCH(värv, v_mark, 0))*kogus -> 122.2416
B26: 4 | C26: VL_02 | D26: =INDEX(Pindala, korter) * INDEX(v_kulu, MATCH(värv, v_mark, 0)) -> 20.448 | E26: =INDEX(v_hind, MATCH(värv, v_mark, 0))*kogus -> 89.9712 | H26: Leida nimetuse alusel kauba kood ja hind
B27: 5 | C27: VL_11 | D27: =INDEX(Pindala, korter) * INDEX(v_kulu, MATCH(värv, v_mark, 0)) -> 35.76 | E27: =INDEX(v_hind, MATCH(värv, v_mark, 0))*kogus -> 148.0464
B28: 6 | C28: VL_11 | D28: =INDEX(Pindala, korter) * INDEX(v_kulu, MATCH(värv, v_mark, 0)) -> 30.576 | E28: =INDEX(v_hind, MATCH(värv, v_mark, 0))*kogus -> 126.58464 | I28: Nimetus | J28: Kood | K28: Hind
B29: 7 | C29: VL_02 | D29: =INDEX(Pindala, korter) * INDEX(v_kulu, MATCH(värv, v_mark, 0)) -> 21.888 | E29: =INDEX(v_hind, MATCH(värv, v_mark, 0))*kogus -> 96.3072 | I29: Juust Atleet viil vaakumis (ca 150 g) | J29: =INDEX(Koodid, MATCH(Nimetus, Nimetused,0)) -> 214157 | K29: =INDEX(Hinnad, MATCH(Nimetus, Nimetused,0)) -> 7.02
B30: 8 | C30: VL_11 | D30: =INDEX(Pindala, korter) * INDEX(v_kulu, MATCH(värv, v_mark, 0)) -> 39.552 | E30: =INDEX(v_hind, MATCH(värv, v_mark, 0))*kogus -> 163.74528

Sheet Värvid
B2: Värvide hinnakiri
B4: v_mark | C4: v_kulu | D4: v_hind | E4: v_tootja
B5: VL_13 | C5: 0.52 | D5: 3.6 | E5: Sadolin
B6: VL_30 | C6: 0.47 | D6: 3.92 | E6: Kessu
B7: VL_01 | C7: 0.52 | D7: 3.98 | E7: JukuColor
B8: VL_25 | C8: 0.42 | D8: 4.08 | E8: Kessu
B9: VL_06 | C9: 0.45 | D9: 4.13 | E9: JukuColor
B10: VL_11 | C10: 0.48 | D10: 4.14 | E10: JukuColor
B11: VL_02 | C11: 0.48 | D11: 4.4 | E11: Sadolin
B12: VL_21 | C12: 0.39 | D12: 5.17 | E12: Sadolin
B13: VL_09 | C13: 0.55 | D13: 5.24 | E13: JukuColor
B14: VL_05 | C14: 0.65 | D14: 5.29 | E14: JukuColor
B15: VL_32 | C15: 0.55 | D15: 8.23 | E15: Kessu

Sheet Fukts
B2: Funktsioonide ekstreemumite ja nende asukohtade leidmine
B3: Koostada valemid, mis leivad fumktsiooni Y maksimumi
B4: ja funktsioni Z miinimumi ja nende asukohad
B5: algus | C5: samm | D5: lõpp | F5: Ymax | G5: koht | H5: Zmin | I5: koht | J5: integ Y | K5: baas | L5: lisa | M5: pind Z
B6: =baas + lisa -> -15 | C6: 1 | D6: =algus + (COUNT(x) -1)*samm -> 0 | F6: =MAX(y) -> 2.929734185 | G6: =INDEX(x, MATCH(Ymax, y, 0)) -> -13 | H6: =MIN(z) -> -4.40812232 | I6: =INDEX(x, MATCH(Zmin, z, 0)) -> -14 | K6: -50 | L6: 35
B9: x | C9: Y | D9: Z
B10: =algus -> -15 | C10: =3 * SIN(x + 2) * COS(x / 2) -> -0.4369342031 | D10: =IF(x < 0, 5 * COS(2 * x - 3)*SIN(3*x+3), 3 * SIN(x + 1)*COS(x/2)) -> -0.06084212458
B11: =B10+samm -> -14 | C11: 1.213570598 | D11: -4.40812232
B12: -13 | C12: 2.929734185 | D12: -3.709538196
B13: -12 | C13: 1.567058718 | D13: 1.460565298
B14: -11 | C14: -0.8761677418 | D14: 4.89669862
B15: -10 | C15: -0.8419305673 | D15: 2.547943373
B16: -9 | C16: 0.4154700459 | D16: -2.480058831
B17: -8 | C17: -0.5479144739 | D17: -4.136026468
B18: -7 | C18: -2.693973149 | D18: -1.033220788
B19: -6 | C19: -2.247686375 | D19: 2.47007906
B20: -5 | C20: 0.3391721804 | D20: 2.434556837
B21: -4 | C21: 1.135203743 | D21: -0.009119559755
B22: -3 | C22: -0.1785699082 | D22: -1.27291958
B23: -2 | C23: 0 | D23: -0.531953461
B24: -1 | C24: 2.215380788 | D24: 0
B25: 0 | C25: 2.72789228 | D25: 2.524412954

Sheet Ind_Mats_Tab
D1: veeb
B2: INDEX & MATCH
B3: Otsimine vertikaalses tabelis
B6: INDEX(tabel; MATCH(otsitav; v_tulp; OV); t_tulp)
B7: MATCH leiab otsitava väärtusele vastava järjenumbri (jnr) tulbas v_tulp
B8: v_tulp - võtmete tulp tabelis (tavaliselt 1. tulp)
B9: INDEX tagastab väärtuse lahtrist tabel(jnr, t_tulp)
B10: t_tulp - tulba number, kust võetakse tagastatav väärtus
B12: Võrdluseks funktsioon VLOOKUP
B14: VLOOKUP(otsitav; tabel; t_tulp; OV)
B16: Leida tabelist Värvid värvi hind ja kulu, kasutades
B17: funktsioone INDEX ja MATCH otsimiseks tabelis
B19: Värv | C19: Hind | D19: Kulu | H19: Koodid | I19: Nimetused | J19: Pakendis | K19: Hinnad
B20: VL_13 | C20: =INDEX(Värvid, MATCH(Värv, v_mark, 0) + 1, 3) -> 3.6 | D20: =INDEX(Värvid, MATCH(Värv, v_mark, 0) + 1, 2) -> 0.52 | H20: 214002 | I20: Dor Blue juust 50% 100 g | J20: 5 | K20: 1.1
H21: 214003 | I21: ARLA juust Kvibille Grädd.140g | J21: 10 | K21: 1.5
B22: Näide | H22: 214006 | I22: Juust ROSENBORG sinihallitus 125g | J22: 8 | K22: 2
B23: Leida tabelist Juustud nimetuse järgi kauba kood ja hind | H23: 214073 | I23: FETAKI juust 500 g | J23: 24 | K23: 2.2
B24: Nimetus | C24: kood | D24: hind | H24: 214071 | I24: Juust Camembert 125 g | J24: 24 | K24: 2.5
B25: FETAKI juust 500 g | C25: =INDEX(Juustud, MATCH(Nimetus, Nimetused, 0)+1, 1) -> 214073 | D25: =INDEX(Juustud, MATCH(Nimetus, Nimetused, 0)+1, 4) -> 2.2 | H25: 214157 | I25: Juust Atleet viil vaakumis (ca 150 g) | J25: 1 | K25: 7
H26: 214158 | I26: Juust Eesti viil vaakumis (ca 150 g) | J26: 1 | K26: 7
H27: 214004 | I27: ARLA juust Kvibille Grädd.3kg | J27: 1 | K27: 27.5

Sheet Vahemik
B2: Vahemiku otsimine
B3: Funktsioonide LOOKUP ning INDEX ja MATCH kasutamine vahemiku otsimiseks
B4: Kauba hind sõltub ostetavast kogusest
B5: kogus - K | C5: hind
B6: 1 <= K < 5 | C6: 60
B7: 5 <= K < 15 | C7: 58
B8: 15 <= K < 25 | C8: 56
B9: 25 <= K < 35 | C9: 54
B10: 35 <= K < 45 | C10: 52
B11: 45 <= K < 50 | C11: 50
B12: K >= 50 | C12: 48 | F12: Otsimistabel
B14: kogus - K | C14: hind | D14: piirid | F14: piirid | G14: hinnad
B15: 1 <= K < 5 | C15: 60 | D15: 1 | F15: 1 | G15: 60
B16: 5 <= K < 15 | C16: 58 | D16: 5 | F16: 5 | G16: 58
B17: 15 <= K < 25 | C17: 56 | D17: 15 | F17: 15 | G17: 56
B18: 25 <= K < 35 | C18: 54 | D18: 25 | F18: 25 | G18: 54
B19: 35 <= K < 45 | C19: 52 | D19: 35 | F19: 35 | G19: 52
B20: 45 <= K < 50 | C20: 50 | D20: 45 | F20: 45 | G20: 50
B21: K >= 50 | C21: 48 | D21: 50 | F21: 50 | G21: 48
D23: LOOKUP | E23: INDEX/MATCH | F23: IF
C24: kogus | D24: hind | E24: hind | F24: hind
C25: 25 | D25: =LOOKUP(kogus, piirid, hinnad) -> 54 | E25: =INDEX(hinnad, MATCH(kogus, piirid)) -> 54 | F25: =IF(kogus<$F$16, $G$15, IF(kogus<$F$17, $G$16, IF(kogus<$F$18, $G$17, IF(kogus<$F$19, $G$18, IF(kogus<$F$20, $G$19, IF(kogus<$F$21, $G$20, $G$21)))))) -> 54
C26: 3 | D26: 60 | E26: 60 | F26: 60
C27: 13 | D27: 58 | E27: 58 | F27: 58
C28: 37 | D28: 52 | E28: 52 | F28: 52
C29: 60 | D29: 48 | E29: 48 | F29: 48
C30: 26 | D30: 54 | E30: 54 | F30: 54
A32: =IF(kogus<$F$16; $G$15; IF(kogus<$F$17; $G$16; IF(kogus<$F$18; $G$17; IF(kogus<$F$19; $G$18; IF(kogus<$F$20; $G$19; IF(kogus<$F$21; $G$20; $G$21))))))

Sheet Komisjoon
B3: Komisjoni tasu leidmine
B5: Nimi | C5: Läbimüük | D5: Protsent | E5: Tasu | G5: kogused | H5: protsendid
B6: Kaasik | C6: 3240 | D6: =LOOKUP(Läbimüük, kogused, protsendid) -> 0.1 | E6: =Protsent *Läbimüük -> 324 | G6: 0 | H6: 0.03
B7: Kuusik | C7: 690 | D7: =LOOKUP(Läbimüük, kogused, protsendid) -> 0.03 | E7: =Protsent *Läbimüük -> 20.7 | G7: 1000 | H7: 0.07
B8: Tammik | C8: 6320 | D8: =LOOKUP(Läbimüük, kogused, protsendid) -> 0.13 | E8: =Protsent *Läbimüük -> 821.6 | G8: 2500 | H8: 0.1
B9: Lepik | C9: 2700 | D9: =LOOKUP(Läbimüük, kogused, protsendid) -> 0.1 | E9: =Protsent *Läbimüük -> 270 | G9: 4000 | H9: 0.13
B10: Männik | C10: 1830 | D10: =LOOKUP(Läbimüük, kogused, protsendid) -> 0.07 | E10: =Protsent *Läbimüük -> 128.1

Sheet Ind_Mats_Tab_1
B2: Otsimine kahes suunas. INDEX & MATCH ja VLOOKUP.
B4: INDEX(tabel; MATCH(otsitav1; v_tulp; OV1); MATCH(otsitav2; v_rivi; OV2);)
B5: Esimene MATCH leiab otsitava1 väärtusele vastava rivinumbri - m
B6: Teinene MATCH leiab otsitava2 väärtusele vastava tulbanumbri - n
B7: v_tulp - võtmete tulp tabelis, v_rivi - võtmete rivi tabelis
B8: INDEX tagastab väärtuse lahtrist tabel(m, n)
B10: Sama funktsiooniga VLOOKUP
B11: VLOOKUP(otsitav1; tabel; MATCH(otsitav2; v_rivi; OV2); OV1)
B13: Näide. Leida puidu hind sõltuvalt liigist ja läbimõõdust
B15: liik | C15: d | D15: hind I & M | E15: hind VL
B16: lepp | C16: 13 | D16: =INDEX(P_hinnad, MATCH(liik, P_liigid, 0)+1, MATCH(d, P_diam, 1)+1) -> 49 | E16: =VLOOKUP(liik, P_hinnad, MATCH(d, P_diam, 1)+1, 0) -> 49
C19: 5 - 10 | D19: 10-14 | E19: 15-19 | F19: 20-24 | G19: 25-29 | H19: >=30
B21: Liigid | C21: 5 | D21: 10 | E21: 15 | F21: 20 | G21: 25 | H21: 30
B22: haab | C22: 34 | D22: 38 | E22: 42 | F22: 46 | G22: 50 | H22: 53
B23: kask | C23: 47 | D23: 53 | E23: 58 | F23: 64 | G23: 71 | H23: 74
B24: kuusk | C24: 54 | D24: 60 | E24: 67 | F24: 73 | G24: 81 | H24: 85
B25: lepp | C25: 44 | D25: 49 | E25: 54 | F25: 60 | G25: 66 | H25: 69
B26: mänd | C26: 51 | D26: 56 | E26: 63 | F26: 69 | G26: 76 | H26: 79
B27: saar | C27: 57 | D27: 64 | E27: 71 | F27: 78 | G27: 86 | H27: 90
B28: tamm | C28: 74 | D28: 83 | E28: 92 | F28: 101 | G28: 111 | H28: 117
B29: vaher | C29: 64 | D29: 71 | E29: 79 | F29: 87 | G29: 96 | H29: 101

Sheet Sheet2
